[Event "European Rapid Championship 2021"]
[Site "Katowice"]
[Date "2021.12.19"]
[Round "8.6"]
[White "Godzwon, Iwo"]
[Black "Budzisz, Adrian"]
[Result "1/2-1/2"]
[ECO "C07"]
[WhiteElo "2352"]
[BlackElo "1985"]
[Annotator "NA"]
[PlyCount "123"]
[EventDate "2021.12.18"]
[EventType "swiss"]
[EventCountry "POL"]
[SourceTitle "playchess.com"]
[Source "ChessBase"]
[SourceQuality "1"]
[TimeControl "900+10"]

1. e4 {[%emt 0:00:01]} e6 {[%emt 0:00:01]} 2. d4 {[%emt 0:00:17]} d5 {[%emt 0:
00:01]} 3. Nd2 {[%emt 0:00:01]} c5 {[%emt 0:00:01]} 4. Ngf3 {[%emt 0:00:02]}
Nf6 {[%emt 0:00:01]} 5. exd5 {[%emt 0:00:05]} exd5 {[%emt 0:00:02]} 6. Bb5+ {
[%emt 0:00:11]} Bd7 {[%emt 0:00:01]} 7. Qe2+ {[%emt 0:00:12]} Be7 {[%emt 0:00:
22]} 8. O-O {[%emt 0:01:03]} O-O {[%emt 0:00:03]} 9. dxc5 {[%emt 0:00:06]} Bxc5
{[%emt 0:00:02]} 10. Nb3 {[%emt 0:00:01]} Re8 {[%emt 0:00:08]} 11. Qd3 {
[%emt 0:00:01]} Bb6 {[%emt 0:00:01]} 12. Bg5 {[%emt 0:00:05]} Nc6 {[%emt 0:00:
19]} 13. c3 {[%emt 0:00:55]} a6 {[%emt 0:00:02]} 14. Bxc6 {[%emt 0:00:09]} bxc6
{[%emt 0:00:01]} 15. Rfe1 {[%emt 0:00:01]} h6 {[%emt 0:00:48]} 16. Be3 {
[%emt 0:00:01]} Ne4 {[%emt 0:00:09]} 17. Nfd2 {[%emt 0:03:09]} Bf5 {[%emt 0:01:
15]} 18. Nxe4 {[%emt 0:00:02]} Bxe4 {[%emt 0:00:16]} 19. Bxb6 {[%emt 0:00:06]}
Bxd3 {[%emt 0:02:30]} 20. Bxd8 {[%emt 0:00:02]} Rexd8 {[%emt 0:01:08]} 21. Nc5
{[%emt 0:01:43]} Bf5 {[%emt 0:00:27]} 22. Re5 {[%emt 0:01:02]} Bg6 {[%emt 0:00:
23]} 23. Rd1 {[%emt 0:00:05]} a5 {[%emt 0:00:09]} 24. h4 {[%emt 0:00:12]} Re8 {
[%emt 0:00:35]} 25. Rxe8+ {[%emt 0:02:19]} Rxe8 {[%emt 0:00:02]} 26. Rd2 {
[%emt 0:00:01]} Bb1 {[%emt 0:00:59]} 27. a3 {[%emt 0:00:08]} Kh7 {[%emt 0:00:
22]} 28. f3 {[%emt 0:01:14]} Rb8 {[%emt 0:00:12]} 29. Kf2 {[%emt 0:00:13]} Rb5
{[%emt 0:00:23]} 30. b4 {[%emt 0:00:01]} g5 {[%emt 0:01:33]} 31. hxg5 {[%emt 0:
00:04]} axb4 {[%emt 0:00:07]} 32. cxb4 {[%emt 0:00:08]} hxg5 {[%emt 0:00:02]}
33. Rb2 {[%emt 0:00:22]} Bf5 {[%emt 0:00:14]} 34. a4 {[%emt 0:00:01]} Rb8 {
[%emt 0:00:03]} 35. a5 {[%emt 0:00:26]} Bc8 {[%emt 0:00:24]} 36. Ke3 {[%emt 0:
00:48]} Kg6 {[%emt 0:00:32]} 37. Kd4 {[%emt 0:00:16]} Kf6 {[%emt 0:00:17]} 38.
Na4 {[%emt 0:00:13]} Ba6 {[%emt 0:00:14]} 39. Nc5 {[%emt 0:01:25]} Bc8 {
[%emt 0:00:02]} 40. Kc3 {[%emt 0:00:00]} Kf5 {[%emt 0:00:35]} 41. Re2 {[%emt 0:
00:09]} Kf4 {[%emt 0:00:07]} 42. Re8 {[%emt 0:01:57]} d4+ {[%emt 0:00:58]} 43.
Kd2 {[%emt 0:00:00]} Kg3 {[%emt 0:00:24]} 44. Nd7 {[%emt 0:00:11]} Rxb4 {
[%emt 0:00:18]} 45. Rxc8 {[%emt 0:00:01]} Ra4 {[%emt 0:00:00]} 46. Ra8 {
[%emt 0:00:13]} Kxg2 {[%emt 0:00:04]} 47. Ne5 {[%emt 0:01:38]} c5 {[%emt 0:00:
06]} 48. a6 {[%emt 0:01:14]} c4 {[%emt 0:00:31]} 49. a7 {[%emt 0:00:04]} Ra2+ {
[%emt 0:00:02]} 50. Kc1 {[%emt 0:00:00]} c3 {[%emt 0:00:53]} 51. Rd8 {[%emt 0:
00:51]} Rxa7 {[%emt 0:00:09]} 52. Rxd4 {[%emt 0:00:01]} f6 {[%emt 0:00:07]} 53.
Nd7 {[%emt 0:00:09]} f5 {[%emt 0:00:35]} 54. Ne5 {[%emt 0:00:07]} Ra5 {[%emt 0:
00:24]} 55. Nf7 {[%emt 0:00:08]} f4 {[%emt 0:00:08]} 56. Rd3 {[%emt 0:00:03]}
g4 {[%emt 0:00:22]} 57. fxg4 {[%emt 0:00:11]} f3 {[%emt 0:00:00]} 58. Rxf3 {
[%emt 0:00:25]} Kxf3 {[%emt 0:00:02]} 59. Kc2 {[%emt 0:00:00]} Ra3 {[%emt 0:00:
42]} 60. g5 {[%emt 0:00:11]} Ke3 {[%emt 0:00:15]} 61. Nd6 {[%emt 0:00:09]} Ra6
{[%emt 0:00:19]} 62. Nb5 {[%emt 0:00:03]} 1/2-1/2

[Event "European Rapid Championship 2021"]
[Site "Katowice"]
[Date "2021.12.19"]
[Round "8.7"]
[White "Gretarsson, Helgi Ass"]
[Black "Bernadskiy, Vitaliy"]
[Result "0-1"]
[ECO "B06"]
[WhiteElo "2476"]
[BlackElo "2616"]
[Annotator "ChessBase"]
[PlyCount "40"]
[EventDate "2021.12.18"]
[EventType "swiss"]
[EventCountry "POL"]
[SourceTitle "playchess.com"]
[Source "ChessBase"]
[SourceQuality "1"]
[TimeControl "900+10"]

1. d4 {[%emt 0:13:26]} g6 {[%emt 0:00:01]} 2. e4 {[%emt 0:00:01]} Bg7 {[%emt 0:
00:03]} 3. Nc3 {[%emt 0:00:01]} a6 4. Nf3 {[%emt 0:00:02]} d6 {[%emt 0:00:31]}
5. h3 {[%emt 0:00:01]} b5 {[%emt 0:00:08]} 6. Bd3 {[%emt 0:00:08]} Nd7 {
[%emt 0:00:32]} 7. a4 {[%emt 0:00:03]} b4 {[%emt 0:00:21]} 8. Ne2 {[%emt 0:00:
00]} Ngf6 {[%emt 0:01:17]} 9. O-O {[%emt 0:00:02]} O-O {[%emt 0:00:02]} 10. a5
{[%emt 0:00:19]} c5 {[%emt 0:00:52]} 11. c3 {[%emt 0:00:01]} cxd4 {[%emt 0:00:
14]} 12. cxd4 {[%emt 0:00:01]} e5 {[%emt 0:00:01]} 13. Ng3 {[%emt 0:00:07]}
exd4 {[%emt 0:00:16]} 14. Nxd4 {[%emt 0:00:01]} Bb7 {[%emt 0:00:03]} 15. Bc2 {
[%emt 0:00:08]} Rc8 {[%emt 0:00:02]} 16. Re1 {[%emt 0:00:15]} Re8 {[%emt 0:00:
13]} 17. Bf4 {[%emt 0:00:11]} h5 {[%emt 0:00:19]} 18. Nf3 {[%emt 0:00:28]} Nc5
{[%emt 0:00:41]} 19. Bg5 {[%emt 0:00:20]} Qc7 {[%emt 0:00:05]} 20. Bf4 {
[%emt 0:01:32]} Ne6 {[%emt 0:00:08]} 0-1

[Event "European Rapid Championship 2021"]
[Site "Katowice"]
[Date "2021.12.19"]
[Round "8.7"]
[White "Luberanski, Jakub"]
[Black "Kulon, Klaudia"]
[Result "0-1"]
[ECO "E94"]
[WhiteElo "2199"]
[BlackElo "2328"]
[Annotator "ChessBase"]
[PlyCount "172"]
[EventDate "2021.12.18"]
[EventType "swiss"]
[EventCountry "POL"]
[SourceTitle "playchess.com"]
[Source "ChessBase"]
[SourceQuality "1"]
[TimeControl "900+10"]

1. d4 {[%emt 0:00:02]} Nf6 {[%emt 0:00:05]} 2. c4 {[%emt 0:00:02]} g6 {[%emt 0:
00:01]} 3. Nc3 {[%emt 0:00:01]} Bg7 {[%emt 0:00:01]} 4. e4 {[%emt 0:00:01]} O-O
{[%emt 0:00:02]} 5. Nf3 {[%emt 0:00:01]} d6 {[%emt 0:00:01]} 6. Be2 {[%emt 0:
00:01]} e5 {[%emt 0:00:01]} 7. O-O {[%emt 0:00:02]} exd4 {[%emt 0:00:01]} 8.
Nxd4 {[%emt 0:00:02]} Re8 {[%emt 0:00:01]} 9. f3 {[%emt 0:00:01]} c6 {[%emt 0:
00:01]} 10. Kh1 {[%emt 0:00:09]} Nbd7 {[%emt 0:00:01]} 11. Be3 {[%emt 0:02:26]}
d5 {[%emt 0:00:13]} 12. cxd5 {[%emt 0:00:07]} Nxd5 {[%emt 0:00:50]} 13. exd5 {
[%emt 0:01:56]} Rxe3 {[%emt 0:00:02]} 14. dxc6 {[%emt 0:00:02]} bxc6 {[%emt 0:
00:06]} 15. Nxc6 {[%emt 0:00:33]} Qe8 {[%emt 0:04:36]} 16. Nd5 {[%emt 0:01:27]}
Rxe2 {[%emt 0:00:02]} 17. Nc7 {[%emt 0:00:01]} Qe3 {[%emt 0:00:01]} 18. Nxa8 {
[%emt 0:00:02]} Rd2 {[%emt 0:02:13]} 19. Qe1 {[%emt 0:04:53]} Re2 {[%emt 0:00:
02]} 20. Qa5 {[%emt 0:00:34]} Bb7 {[%emt 0:01:24]} 21. Qd8+ {[%emt 0:00:28]}
Nf8 {[%emt 0:00:06]} 22. Na5 {[%emt 0:00:11]} Bxa8 {[%emt 0:00:23]} 23. Qxa8 {
[%emt 0:00:02]} Qg5 {[%emt 0:00:02]} 24. f4 {[%emt 0:00:52]} Qxa5 {[%emt 0:00:
02]} 25. f5 {[%emt 0:00:09]} gxf5 {[%emt 0:01:37]} 26. Rad1 {[%emt 0:00:33]}
Rxb2 {[%emt 0:01:06]} 27. h3 {[%emt 0:00:56]} Rxa2 {[%emt 0:00:57]} 28. Rd5 {
[%emt 0:00:13]} Qa6 {[%emt 0:00:09]} 29. Rdxf5 {[%emt 0:00:02]} Ra1 {[%emt 0:
00:05]} 30. Rxa1 {[%emt 0:01:06]} Qxa1+ {[%emt 0:00:01]} 31. Kh2 {[%emt 0:00:
01]} Be5+ {[%emt 0:00:13]} 32. g3 {[%emt 0:00:01]} Qb2+ {[%emt 0:00:16]} 33.
Qg2 {[%emt 0:00:03]} Qxg2+ {[%emt 0:00:22]} 34. Kxg2 {[%emt 0:00:01]} f6 {
[%emt 0:00:01]} 35. g4 {[%emt 0:00:09]} Ng6 {[%emt 0:00:05]} 36. Kf1 {[%emt 0:
00:39]} a5 {[%emt 0:00:27]} 37. Rf3 {[%emt 0:00:28]} Kg7 {[%emt 0:00:23]} 38.
Ra3 {[%emt 0:00:10]} Bc7 {[%emt 0:00:05]} 39. Rc3 {[%emt 0:00:01]} Bd6 {
[%emt 0:00:16]} 40. Rc6 {[%emt 0:00:13]} Bb4 {[%emt 0:00:09]} 41. Ra6 {[%emt 0:
00:01]} Ne5 {[%emt 0:00:13]} 42. Ke2 {[%emt 0:00:08]} Kg6 {[%emt 0:00:08]} 43.
Ke3 {[%emt 0:00:15]} Kg5 {[%emt 0:00:07]} 44. Ke4 {[%emt 0:00:09]} Ng6 {
[%emt 0:00:15]} 45. Ra7 {[%emt 0:00:15]} Ne7 {[%emt 0:00:56]} 46. Ra6 {[%emt 0:
00:25]} h6 {[%emt 0:01:06]} 47. Rb6 {[%emt 0:00:41]} Bc3 {[%emt 0:00:24]} 48.
Rb5+ {[%emt 0:00:13]} Be5 {[%emt 0:01:25]} 49. Rxa5 {[%emt 0:00:05]} Kh4 {
[%emt 0:00:01]} 50. Ra3 {[%emt 0:00:39]} Ng6 {[%emt 0:00:10]} 51. Rf3 {[%emt 0:
00:23]} Ne7 {[%emt 0:00:59]} 52. Rb3 {[%emt 0:00:46]} Nc6 {[%emt 0:00:11]} 53.
Rd3 {[%emt 0:00:26]} Nd4 {[%emt 0:00:09]} 54. Ra3 {[%emt 0:00:16]} Ne2 {
[%emt 0:00:02]} 55. Kf5 {[%emt 0:00:07]} Ng3+ {[%emt 0:00:06]} 56. Kg6 {
[%emt 0:00:01]} Kxh3 {[%emt 0:00:08]} 57. Ra4 {[%emt 0:00:18]} Ne2 {[%emt 0:00:
36]} 58. Kxh6 {[%emt 0:00:01]} Bf4+ {[%emt 0:00:12]} 59. Kg6 {[%emt 0:00:29]}
Bg5 {[%emt 0:00:01]} 60. Ra6 {[%emt 0:00:09]} Nf4+ {[%emt 0:00:28]} 61. Kf5 {
[%emt 0:00:04]} Nd5 {[%emt 0:00:01]} 62. Ra3+ {[%emt 0:00:16]} Kh4 {[%emt 0:00:
01]} 63. Rf3 {[%emt 0:00:24]} Ne7+ {[%emt 0:00:29]} 64. Ke6 {[%emt 0:00:02]}
Ng8 {[%emt 0:00:01]} 65. Kf7 {[%emt 0:00:34]} Nh6+ {[%emt 0:00:01]} 66. Kg6 {
[%emt 0:00:01]} Nxg4 {[%emt 0:00:01]} 67. Rb3 {[%emt 0:00:08]} Ne5+ {[%emt 0:
00:27]} 68. Kf5 {[%emt 0:00:02]} Nc6 {[%emt 0:00:01]} 69. Rb6 {[%emt 0:00:20]}
Ne7+ {[%emt 0:00:35]} 70. Ke6 {[%emt 0:00:01]} f5 {[%emt 0:00:18]} 71. Rb4+ {
[%emt 0:00:07]} Kh5 {[%emt 0:00:03]} 72. Ra4 {[%emt 0:00:25]} Kg6 {[%emt 0:00:
02]} 73. Rc4 {[%emt 0:00:08]} Bf6 {[%emt 0:00:05]} 74. Rf4 {[%emt 0:00:05]} Nc6
{[%emt 0:00:18]} 75. Rf1 {[%emt 0:00:16]} Nd4+ {[%emt 0:00:01]} 76. Kd5 {
[%emt 0:00:01]} Nc2 {[%emt 0:00:35]} 77. Ke6 {[%emt 0:00:12]} Bg5 {[%emt 0:00:
10]} 78. Rf2 {[%emt 0:00:10]} Nd4+ {[%emt 0:00:17]} 79. Ke5 {[%emt 0:00:03]}
Be3 {[%emt 0:00:01]} 80. Rg2+ {[%emt 0:00:04]} Kh5 {[%emt 0:00:02]} 81. Rg3 {
[%emt 0:00:23]} f4 {[%emt 0:00:03]} 82. Rg8 {[%emt 0:00:05]} f3 {[%emt 0:00:11]
} 83. Ke4 {[%emt 0:00:04]} f2 {[%emt 0:00:12]} 84. Rf8 {[%emt 0:00:03]} Nc2 {
[%emt 0:00:07]} 85. Kd3 {[%emt 0:00:02]} Bc5 {[%emt 0:00:11]} 86. Kxc2 {
[%emt 0:00:05]} Bxf8 {[%emt 0:00:01]} 0-1

[Event "European Rapid Championship 2021"]
[Site "Katowice"]
[Date "2021.12.19"]
[Round "8.8"]
[White "Kozak, Antoni"]
[Black "Durarbayli, Vasif"]
[Result "1/2-1/2"]
[ECO "A46"]
[WhiteElo "2356"]
[BlackElo "2532"]
[Annotator "ChessBase"]
[PlyCount "169"]
[EventDate "2021.12.18"]
[EventType "swiss"]
[EventCountry "POL"]
[SourceTitle "playchess.com"]
[Source "ChessBase"]
[SourceQuality "1"]
[TimeControl "900+10"]

1. d4 {[%emt 0:00:02]} Nf6 {[%emt 0:00:01]} 2. Nf3 {[%emt 0:00:01]} e6 {
[%emt 0:00:00]} 3. e3 {[%emt 0:00:01]} b6 {[%emt 0:00:07]} 4. Bd3 {[%emt 0:00:
02]} Bb7 {[%emt 0:00:01]} 5. Nbd2 {[%emt 0:00:01]} d5 {[%emt 0:00:17]} 6. b3 {
[%emt 0:00:07]} Bd6 {[%emt 0:00:02]} 7. Bb2 {[%emt 0:00:02]} Nbd7 {[%emt 0:00:
10]} 8. O-O {[%emt 0:00:04]} c5 {[%emt 0:00:05]} 9. c4 {[%emt 0:00:58]} cxd4 {
[%emt 0:00:08]} 10. exd4 {[%emt 0:01:25]} Ne4 {[%emt 0:00:34]} 11. Qe2 {
[%emt 0:04:00]} Nxd2 {[%emt 0:00:36]} 12. Nxd2 {[%emt 0:00:02]} O-O {[%emt 0:
00:16]} 13. Nf3 {[%emt 0:00:56]} Rc8 {[%emt 0:00:21]} 14. Rad1 {[%emt 0:00:51]}
Qe7 {[%emt 0:00:36]} 15. Ne5 {[%emt 0:01:14]} Bxe5 {[%emt 0:02:24]} 16. dxe5 {
[%emt 0:00:03]} Nc5 {[%emt 0:00:01]} 17. Ba3 {[%emt 0:02:25]} Qh4 {[%emt 0:00:
10]} 18. Qe3 {[%emt 0:00:54]} Rfd8 {[%emt 0:00:24]} 19. Be2 {[%emt 0:00:33]}
dxc4 {[%emt 0:03:06]} 20. bxc4 {[%emt 0:02:53]} h6 {[%emt 0:00:02]} 21. h3 {
[%emt 0:00:41]} Qe4 {[%emt 0:01:49]} 22. Qxe4 {[%emt 0:00:19]} Bxe4 {[%emt 0:
00:01]} 23. f3 {[%emt 0:00:30]} Bc2 {[%emt 0:00:06]} 24. Rxd8+ {[%emt 0:00:43]}
Rxd8 {[%emt 0:00:01]} 25. Bxc5 {[%emt 0:00:01]} bxc5 {[%emt 0:00:01]} 26. Rf2 {
[%emt 0:00:01]} Bb1 {[%emt 0:00:51]} 27. a3 {[%emt 0:00:31]} Rd2 {[%emt 0:00:
01]} 28. Bf1 {[%emt 0:00:10]} Rd1 {[%emt 0:00:01]} 29. Kh2 {[%emt 0:00:10]} g5
{[%emt 0:01:02]} 30. g3 {[%emt 0:00:12]} Kg7 {[%emt 0:00:59]} 31. Kg2 {[%emt 0:
00:01]} Bd3 {[%emt 0:00:05]} 32. Bxd3 {[%emt 0:00:17]} Rxd3 {[%emt 0:00:01]}
33. Rb2 {[%emt 0:00:00]} Rc3 {[%emt 0:00:24]} 34. Rb7 {[%emt 0:00:09]} a6 {
[%emt 0:00:21]} 35. Rb6 {[%emt 0:00:05]} Rxa3 {[%emt 0:01:20]} 36. Rc6 {
[%emt 0:00:01]} Ra2+ {[%emt 0:00:01]} 37. Kg1 {[%emt 0:00:05]} h5 {[%emt 0:00:
27]} 38. Rxc5 {[%emt 0:00:09]} Kg6 {[%emt 0:00:20]} 39. g4 {[%emt 0:00:23]} h4
{[%emt 0:00:16]} 40. Rc8 {[%emt 0:00:13]} Rc2 {[%emt 0:00:06]} 41. c5 {[%emt 0:
00:14]} a5 {[%emt 0:00:18]} 42. c6 {[%emt 0:00:01]} a4 {[%emt 0:00:01]} 43. c7
{[%emt 0:00:15]} Kg7 {[%emt 0:00:02]} 44. Ra8 {[%emt 0:00:01]} Rxc7 {[%emt 0:
00:04]} 45. Rxa4 {[%emt 0:00:01]} Rc1+ {[%emt 0:00:01]} 46. Kg2 {[%emt 0:00:01]
} Rc2+ {[%emt 0:00:03]} 47. Kg1 {[%emt 0:00:01]} Re2 {[%emt 0:00:01]} 48. Ra5 {
[%emt 0:00:31]} Rd2 {[%emt 0:00:18]} 49. Ra4 {[%emt 0:00:27]} Kf8 {[%emt 0:00:
01]} 50. Ra8+ {[%emt 0:00:01]} Kg7 {[%emt 0:00:01]} 51. Ra4 {[%emt 0:00:02]}
Rd5 {[%emt 0:00:01]} 52. Re4 Kf8 53. Kf2 {[%emt 0:00:22]} Rd2+ {[%emt 0:00:01]}
54. Re2 {[%emt 0:00:09]} Rd5 {[%emt 0:00:02]} 55. Re4 {[%emt 0:00:27]} Ke7 {
[%emt 0:00:03]} 56. Re2 {[%emt 0:00:18]} Kd7 {[%emt 0:00:07]} 57. Re4 {[%emt 0:
00:06]} Rd2+ {[%emt 0:00:08]} 58. Kg1 {[%emt 0:00:01]} Rd5 {[%emt 0:00:14]} 59.
f4 {[%emt 0:00:06]} gxf4 {[%emt 0:00:18]} 60. Rxf4 Ke7 61. Re4 {[%emt 0:00:03]}
Rd3 {[%emt 0:00:19]} 62. Kg2 {[%emt 0:00:06]} Kf8 {[%emt 0:00:05]} 63. Kh2 {
[%emt 0:00:30]} Rg3 {[%emt 0:00:01]} 64. Re2 {[%emt 0:00:10]} Kg7 {[%emt 0:00:
01]} 65. Re4 {[%emt 0:00:05]} Kg6 {[%emt 0:00:09]} 66. Re2 {[%emt 0:00:05]} Rf3
{[%emt 0:01:42]} 67. Kg2 {[%emt 0:00:01]} Rf4 {[%emt 0:00:01]} 68. Re3 {
[%emt 0:00:30]} Kg5 {[%emt 0:00:01]} 69. Rf3 {[%emt 0:00:08]} Re4 {[%emt 0:01:
10]} 70. Rxf7 {[%emt 0:00:01]} Rxe5 {[%emt 0:00:01]} 71. Rh7 {[%emt 0:00:24]}
Kf4 {[%emt 0:00:13]} 72. Rxh4 {[%emt 0:00:01]} Re2+ {[%emt 0:00:02]} 73. Kf1 {
[%emt 0:00:01]} Rh2 {[%emt 0:00:25]} 74. g5+ {[%emt 0:00:43]} Kxg5 {[%emt 0:00:
11]} 75. Rg4+ {[%emt 0:00:01]} Kf5 {[%emt 0:00:01]} 76. Rg3 {[%emt 0:00:01]}
Kf4 {[%emt 0:00:02]} 77. Ra3 {[%emt 0:00:01]} e5 {[%emt 0:00:00]} 78. Rb3 {
[%emt 0:00:04]} e4 {[%emt 0:00:02]} 79. Ke1 {[%emt 0:00:13]} Ra2 {[%emt 0:00:
07]} 80. Kf1 {[%emt 0:00:06]} Rd2 {[%emt 0:00:02]} 81. Ke1 {[%emt 0:00:02]} Ra2
{[%emt 0:00:12]} 82. Kf1 {[%emt 0:00:02]} e3 {[%emt 0:00:00]} 83. Rb8 {[%emt 0:
00:01]} Kg3 {[%emt 0:00:02]} 84. Rg8+ {[%emt 0:00:03]} Kf3 {[%emt 0:00:02]} 85.
Rf8+ {[%emt 0:00:01]} 1/2-1/2

[Event "European Rapid Championship 2021"]
[Site "Katowice"]
[Date "2021.12.19"]
[Round "8.8"]
[White "Lukasiewicz, Krzysztof"]
[Black "Sharankov, Grigory"]
[Result "1-0"]
[ECO "A45"]
[WhiteElo "2251"]
[BlackElo "2220"]
[Annotator "NA"]
[PlyCount "111"]
[EventDate "2021.12.18"]
[EventType "swiss"]
[EventCountry "POL"]
[SourceTitle "playchess.com"]
[Source "ChessBase"]
[SourceQuality "1"]
[TimeControl "900+10"]

1. d4 {[%emt 0:00:09]} Nf6 {[%emt 0:00:04]} 2. Bf4 {[%emt 0:00:01]} d5 {
[%emt 0:00:09]} 3. e3 {[%emt 0:00:02]} c5 {[%emt 0:00:01]} 4. Nf3 {[%emt 0:00:
13]} Nc6 {[%emt 0:00:03]} 5. Nbd2 {[%emt 0:00:02]} cxd4 {[%emt 0:00:02]} 6.
exd4 {[%emt 0:00:01]} Bg4 {[%emt 0:01:12]} 7. c3 {[%emt 0:00:20]} e6 {[%emt 0:
00:02]} 8. Qb3 {[%emt 0:00:02]} Bd6 {[%emt 0:00:01]} 9. Bxd6 {[%emt 0:04:48]}
Qxd6 {[%emt 0:00:02]} 10. Bd3 {[%emt 0:00:01]} O-O {[%emt 0:00:23]} 11. O-O {
[%emt 0:00:02]} Bh5 {[%emt 0:01:17]} 12. Rae1 {[%emt 0:00:36]} Nd7 {[%emt 0:00:
35]} 13. Re3 {[%emt 0:01:07]} Bg6 {[%emt 0:00:10]} 14. Bxg6 {[%emt 0:00:03]}
hxg6 {[%emt 0:00:02]} 15. Rfe1 {[%emt 0:00:01]} Rfe8 {[%emt 0:01:18]} 16. Ne5 {
[%emt 0:00:12]} Ncxe5 {[%emt 0:02:44]} 17. dxe5 {[%emt 0:00:02]} Qc7 {[%emt 0:
00:58]} 18. Qb4 {[%emt 0:01:44]} Qb6 {[%emt 0:01:41]} 19. Qh4 {[%emt 0:00:03]}
f6 {[%emt 0:02:22]} 20. exf6 {[%emt 0:00:16]} Nxf6 {[%emt 0:00:12]} 21. Rh3 {
[%emt 0:00:53]} Kf7 {[%emt 0:00:50]} 22. Nf3 {[%emt 0:00:02]} Qxb2 {[%emt 0:00:
34]} 23. Ng5+ {[%emt 0:01:47]} Ke7 {[%emt 0:00:01]} 24. Nxe6 {[%emt 0:00:06]}
Kd7 {[%emt 0:00:24]} 25. Rhe3 {[%emt 0:01:35]} Ne4 {[%emt 0:00:17]} 26. Nxg7 {
[%emt 0:00:04]} Rg8 {[%emt 0:00:31]} 27. Qg4+ {[%emt 0:00:21]} Kd6 {[%emt 0:00:
21]} 28. Qxg6+ {[%emt 0:00:12]} Kc7 {[%emt 0:00:40]} 29. Qf7+ {[%emt 0:00:59]}
Kc6 {[%emt 0:00:05]} 30. Qe6+ {[%emt 0:01:51]} Kc5 {[%emt 0:00:01]} 31. Qe7+ {
[%emt 0:00:01]} Kc6 {[%emt 0:00:03]} 32. c4 {[%emt 0:00:28]} Rae8 {[%emt 0:01:
49]} 33. cxd5+ Kb6 34. Qf7 {[%emt 0:02:32]} Rxg7 {[%emt 0:00:25]} 35. Qf3 {
[%emt 0:00:01]} Nd2 {[%emt 0:00:15]} 36. Re6+ {[%emt 0:00:21]} Ka5 {[%emt 0:00:
39]} 37. Qd3 {[%emt 0:00:10]} Rxe6 {[%emt 0:00:25]} 38. dxe6 {[%emt 0:00:00]}
Qb4 {[%emt 0:00:00]} 39. Re5+ {[%emt 0:00:21]} b5 {[%emt 0:00:07]} 40. h4 {
[%emt 0:00:07]} Nc4 {[%emt 0:00:27]} 41. Qd8+ {[%emt 0:00:12]} Ka4 {[%emt 0:00:
19]} 42. Qd1+ {[%emt 0:00:09]} Ka5 {[%emt 0:00:06]} 43. Re2 {[%emt 0:00:11]}
Qc5 {[%emt 0:00:22]} 44. e7 {[%emt 0:00:05]} Qc6 {[%emt 0:00:13]} 45. g3 {
[%emt 0:00:14]} Qc5 {[%emt 0:00:15]} 46. Qd8+ {[%emt 0:00:09]} Ka4 {[%emt 0:00:
01]} 47. Qd1+ Ka5 48. Qe1+ {[%emt 0:00:20]} Ka4 {[%emt 0:00:07]} 49. e8=Q {
[%emt 0:00:12]} Rxg3+ {[%emt 0:00:08]} 50. Kh2 {[%emt 0:00:01]} Rd3 {[%emt 0:
00:10]} 51. Qe4 {[%emt 0:00:16]} Qd6+ {[%emt 0:00:05]} 52. f4 {[%emt 0:00:02]}
Qd7 {[%emt 0:00:11]} 53. Re3 {[%emt 0:00:05]} Rd2+ {[%emt 0:00:01]} 54. Re2 {
[%emt 0:00:14]} Rd3 {[%emt 0:00:01]} 55. Qe6 {[%emt 0:00:14]} Qd4 {[%emt 0:00:
09]} 56. Qa6+ 1-0

[Event "European Rapid Championship 2021"]
[Site "Katowice"]
[Date "2021.12.19"]
[Round "8.9"]
[White "Stefansson, Hannes"]
[Black "Kosakowski, Jakub"]
[Result "0-1"]
[ECO "B92"]
[WhiteElo "2519"]
[BlackElo "2438"]
[Annotator "ChessBase"]
[PlyCount "74"]
[EventDate "2021.12.18"]
[EventType "swiss"]
[EventCountry "POL"]
[SourceTitle "playchess.com"]
[Source "ChessBase"]
[SourceQuality "1"]
[TimeControl "900+10"]

1. e4 {[%emt 0:00:02]} c5 {[%emt 0:00:20]} 2. Nf3 {[%emt 0:00:02]} d6 {[%emt 0:
00:02]} 3. d4 {[%emt 0:00:05]} cxd4 {[%emt 0:00:02]} 4. Nxd4 {[%emt 0:00:01]}
Nf6 {[%emt 0:00:02]} 5. Nc3 {[%emt 0:00:01]} a6 {[%emt 0:00:02]} 6. Be2 {
[%emt 0:00:23]} e5 {[%emt 0:00:08]} 7. Nf3 {[%emt 0:00:02]} h6 {[%emt 0:00:14]}
8. O-O {[%emt 0:00:36]} Be7 {[%emt 0:00:06]} 9. a4 {[%emt 0:01:07]} Be6 {
[%emt 0:00:23]} 10. Re1 {[%emt 0:00:09]} Nbd7 {[%emt 0:00:08]} 11. h3 {[%emt 0:
00:14]} O-O {[%emt 0:00:46]} 12. Bf1 {[%emt 0:00:48]} Rc8 {[%emt 0:01:38]} 13.
Nh4 {[%emt 0:00:42]} Nxe4 {[%emt 0:02:32]} 14. Nxe4 {[%emt 0:00:10]} Bxh4 {
[%emt 0:00:02]} 15. Nxd6 {[%emt 0:00:05]} Rc6 16. Ne4 {[%emt 0:01:51]} Be7 {
[%emt 0:01:38]} 17. Nc3 {[%emt 0:02:16]} Bb4 {[%emt 0:02:12]} 18. Bd2 {[%emt 0:
00:49]} Rd6 {[%emt 0:01:15]} 19. Qe2 {[%emt 0:00:33]} Nb6 {[%emt 0:00:05]} 20.
Bc1 {[%emt 0:01:24]} Bc4 {[%emt 0:02:02]} 21. Qf3 {[%emt 0:00:23]} Bxf1 {
[%emt 0:00:51]} 22. Rxf1 {[%emt 0:00:02]} Bxc3 {[%emt 0:00:21]} 23. Qxc3 {
[%emt 0:00:02]} Re8 {[%emt 0:00:08]} 24. Re1 {[%emt 0:02:27]} Nd5 25. Qa3 {
[%emt 0:00:15]} Qc7 {[%emt 0:01:05]} 26. Qb3 {[%emt 0:00:10]} Qc6 {[%emt 0:00:
08]} 27. Bd2 {[%emt 0:00:40]} Ree6 {[%emt 0:00:52]} 28. Rad1 {[%emt 0:00:12]}
Rg6 {[%emt 0:00:16]} 29. g3 {[%emt 0:00:09]} Qd7 {[%emt 0:00:16]} 30. Bc1 {
[%emt 0:00:14]} Rge6 {[%emt 0:00:51]} 31. c4 {[%emt 0:00:30]} Ne7 {[%emt 0:00:
03]} 32. Rxd6 {[%emt 0:00:11]} Rxd6 {[%emt 0:00:02]} 33. Kg2 {[%emt 0:00:17]}
Rd3 {[%emt 0:00:05]} 34. Qb6 {[%emt 0:00:26]} Nc6 {[%emt 0:00:43]} 35. Be3 {
[%emt 0:00:05]} a5 {[%emt 0:00:04]} 36. Qb5 {[%emt 0:00:14]} h5 {[%emt 0:00:18]
} 37. f4 {[%emt 0:00:34]} Rxe3 {[%emt 0:00:08]} 0-1